[Event "Early-Titled-Tuesday-Blitz-February-27-2024"]
[Site "Chess.com"]
[Date "2024.02.27"]
[Round "9"]
[White "chucksterf10"]
[Black "IlanSchnaider"]
[Result "0-1"]
[WhiteElo "2570"]
[BlackElo "2744"]
[TimeControl "180+1"]
[EndTime "9:45:22 PST"]
[Termination "IlanSchnaider won by resignation"]

1. a3 {[%clk 0:03:00.9]} 1... g6 {[%clk 0:02:58.2]} 2. d4 {[%clk 0:02:59.2]}
2... Bg7 {[%clk 0:02:57.7]} 3. Nf3 {[%clk 0:02:59.4]} 3... Nf6 {[%clk
0:02:57.8]} 4. Nc3 {[%clk 0:02:59]} 4... d5 {[%clk 0:02:57.8]} 5. Bf4 {[%clk
0:02:58.7]} 5... O-O {[%clk 0:02:53.4]} 6. e3 {[%clk 0:02:58.9]} 6... Bf5 {[%clk
0:02:47.7]} 7. h3 {[%clk 0:02:58.8]} 7... Ne4 {[%clk 0:02:45.2]} 8. Nxe4 {[%clk
0:02:55.7]} 8... Bxe4 {[%clk 0:02:45]} 9. Bd3 {[%clk 0:02:52.2]} 9... c5 {[%clk
0:02:44.2]} 10. c3 {[%clk 0:02:44.9]} 10... Nc6 {[%clk 0:02:40.4]} 11. dxc5
{[%clk 0:02:38.6]} 11... Bxf3 {[%clk 0:02:35.2]} 12. gxf3 {[%clk 0:02:35.9]}
12... e5 {[%clk 0:02:34.9]} 13. Bg3 {[%clk 0:02:36.1]} 13... d4 {[%clk 0:02:34]}
14. cxd4 {[%clk 0:02:34.4]} 14... exd4 {[%clk 0:02:33.9]} 15. e4 {[%clk
0:02:35]} 15... Ne5 {[%clk 0:02:22.7]} 16. f4 {[%clk 0:02:27.6]} 16... Nxd3+
{[%clk 0:02:16.6]} 17. Qxd3 {[%clk 0:02:28.5]} 17... Re8 {[%clk 0:02:16]} 18.
O-O {[%clk 0:02:26.4]} 18... Qc8 {[%clk 0:02:11.2]} 19. Kh2 {[%clk 0:02:13.1]}
19... Qxc5 {[%clk 0:02:11]} 20. Rac1 {[%clk 0:02:12.8]} 20... Qb6 {[%clk
0:02:09.4]} 21. b4 {[%clk 0:02:11.7]} 21... a5 {[%clk 0:02:06.2]} 22. b5 {[%clk
0:02:11.7]} 22... a4 {[%clk 0:02:06.9]} 23. f3 {[%clk 0:02:07.1]} 23... Rac8
{[%clk 0:02:06.5]} 24. Bf2 {[%clk 0:02:04.1]} 24... Qf6 {[%clk 0:02:00.6]} 25.
Bg3 {[%clk 0:01:54.9]} 25... Qd6 {[%clk 0:01:35.9]} 26. f5 {[%clk 0:01:51.6]}
26... Be5 {[%clk 0:01:28.6]} 27. f4 {[%clk 0:01:51.3]} 27... Bg7 {[%clk
0:01:19.8]} 28. fxg6 {[%clk 0:01:51.2]} 28... hxg6 {[%clk 0:01:18.3]} 29. f5
{[%clk 0:01:51.8]} 29... Be5 {[%clk 0:01:18.4]} 30. fxg6 {[%clk 0:01:46.8]}
30... fxg6 {[%clk 0:01:18.7]} 31. Rg1 {[%clk 0:01:39.5]} 31... Bxg3+ {[%clk
0:01:02.8]} 32. Qxg3 {[%clk 0:01:38.4]} 32... Qxg3+ {[%clk 0:01:03]} 33. Kxg3
{[%clk 0:01:38]} 33... Rxc1 {[%clk 0:01:03.1]} 34. Rxc1 {[%clk 0:01:38.7]} 34...
Rxe4 {[%clk 0:01:03.7]} 35. Rc8+ {[%clk 0:01:39.4]} 35... Kf7 {[%clk 0:01:00.1]}
36. Rc7+ {[%clk 0:01:39.6]} 36... Re7 {[%clk 0:00:58.9]} 37. Rc4 {[%clk
0:01:40.1]} 37... Re3+ {[%clk 0:00:49.6]} 38. Kf4 {[%clk 0:01:34.1]} 38... Rxa3
{[%clk 0:00:44.8]} 39. Rxd4 {[%clk 0:01:33.3]} 39... Ke6 {[%clk 0:00:42.8]} 40.
h4 {[%clk 0:01:27.1]} 40... Ra1 {[%clk 0:00:36.8]} 41. Kg5 {[%clk 0:01:05.1]}
41... Rg1+ {[%clk 0:00:35.1]} 42. Kf4 {[%clk 0:00:47.8]} 42... a3 {[%clk
0:00:30.5]} 43. Ra4 {[%clk 0:00:48.3]} 43... Ra1 {[%clk 0:00:29.7]} 44. Kg5
{[%clk 0:00:49]} 44... a2 {[%clk 0:00:28]} 45. Kh6 {[%clk 0:00:49.7]} 45... Kd5
{[%clk 0:00:19.9]} 46. Ra3 {[%clk 0:00:27]} 46... Kc5 {[%clk 0:00:16.9]} 47.
Rc3+ {[%clk 0:00:20.5]} 47... Kb4 {[%clk 0:00:15]} 48. Rc2 {[%clk 0:00:21.2]}
48... Kb3 {[%clk 0:00:13]} 49. Rg2 {[%clk 0:00:21.7]} 49... Rh1 {[%clk
0:00:10.4]} 50. Rxa2 {[%clk 0:00:19]} 50... Kxa2 {[%clk 0:00:10.7]} 51. Kxg6
{[%clk 0:00:19.9]} 51... Rxh4 {[%clk 0:00:10.9]} 0-1

[Event "Early-Titled-Tuesday-Blitz-February-27-2024"]
[Site "Chess.com"]
[Date "2024.02.27"]
[Round "9"]
[White "Eagle_2019"]
[Black "ansko1999"]
[Result "0-1"]
[WhiteElo "2873"]
[BlackElo "2747"]
[TimeControl "180+1"]
[EndTime "9:45:24 PST"]
[Termination "ansko1999 won on time"]

1. e4 {[%clk 0:03:00.9]} 1... e5 {[%clk 0:02:59.6]} 2. Nf3 {[%clk 0:03:00.2]}
2... Nc6 {[%clk 0:03:00.2]} 3. Nc3 {[%clk 0:02:58.4]} 3... Nf6 {[%clk
0:02:57.9]} 4. g3 {[%clk 0:02:58.5]} 4... d5 {[%clk 0:02:51.6]} 5. exd5 {[%clk
0:02:55.8]} 5... Nxd5 {[%clk 0:02:52.5]} 6. Bg2 {[%clk 0:02:53.7]} 6... Nxc3
{[%clk 0:02:52.5]} 7. bxc3 {[%clk 0:02:53.7]} 7... Bc5 {[%clk 0:02:52.5]} 8. O-O
{[%clk 0:02:53]} 8... O-O {[%clk 0:02:53.1]} 9. d3 {[%clk 0:02:53]} 9... h6
{[%clk 0:02:50.5]} 10. Re1 {[%clk 0:02:50.1]} 10... Re8 {[%clk 0:02:48.8]} 11.
Be3 {[%clk 0:02:46]} 11... Bb6 {[%clk 0:02:41]} 12. a4 {[%clk 0:02:18.9]} 12...
Bg4 {[%clk 0:02:30.5]} 13. h3 {[%clk 0:02:17.2]} 13... Bh5 {[%clk 0:02:15.2]}
14. g4 {[%clk 0:02:10.5]} 14... Bg6 {[%clk 0:02:15.2]} 15. Nd2 {[%clk
0:02:09.1]} 15... Bxe3 {[%clk 0:02:06.3]} 16. Rxe3 {[%clk 0:02:10]} 16... Rb8
{[%clk 0:02:00.9]} 17. Nc4 {[%clk 0:02:01.1]} 17... Qf6 {[%clk 0:01:56.8]} 18.
Qf3 {[%clk 0:01:51.3]} 18... Qxf3 {[%clk 0:01:35.2]} 19. Bxf3 {[%clk 0:01:52.2]}
19... f6 {[%clk 0:01:35.3]} 20. Rb1 {[%clk 0:01:48]} 20... Bf7 {[%clk
0:01:28.7]} 21. Kg2 {[%clk 0:01:43.7]} 21... Red8 {[%clk 0:01:21.7]} 22. Nd2
{[%clk 0:01:35.1]} 22... Ne7 {[%clk 0:01:14.2]} 23. c4 {[%clk 0:01:18.1]} 23...
b6 {[%clk 0:01:10.1]} 24. Ree1 {[%clk 0:01:14.7]} 24... Ng6 {[%clk 0:01:06.2]}
25. Kg3 {[%clk 0:01:13.3]} 25... Nf4 {[%clk 0:01:05.5]} 26. Be4 {[%clk
0:01:10.4]} 26... Be6 {[%clk 0:01:00.7]} 27. h4 {[%clk 0:01:09]} 27... Kf7
{[%clk 0:00:59]} 28. Nf3 {[%clk 0:01:01.4]} 28... g6 {[%clk 0:00:52.3]} 29. d4
{[%clk 0:00:33.7]} 29... Bxc4 {[%clk 0:00:36.4]} 30. dxe5 {[%clk 0:00:32.7]}
30... g5 {[%clk 0:00:36.9]} 31. exf6 {[%clk 0:00:26.4]} 31... Kxf6 {[%clk
0:00:37.8]} 32. Rb4 {[%clk 0:00:22.2]} 32... Bf7 {[%clk 0:00:19.9]} 33. Bf5
{[%clk 0:00:11.3]} 33... c5 {[%clk 0:00:18.3]} 34. Rbe4 {[%clk 0:00:09.4]} 34...
Bd5 {[%clk 0:00:14.8]} 35. hxg5+ {[%clk 0:00:06.4]} 35... hxg5 {[%clk
0:00:14.9]} 36. R4e3 {[%clk 0:00:06.6]} 36... Rh8 {[%clk 0:00:10.6]} 37. Ng1
{[%clk 0:00:06.1]} 37... Rh1 {[%clk 0:00:08.5]} 38. f3 {[%clk 0:00:05.3]} 38...
Rbh8 {[%clk 0:00:07.6]} 39. Be4 {[%clk 0:00:01.6]} 39... Bc4 {[%clk 0:00:07.2]}
40. Bf5 {[%clk 0:00:01.3]} 40... R8h2 {[%clk 0:00:06.7]} 0-1

[Event "Early-Titled-Tuesday-Blitz-February-27-2024"]
[Site "Chess.com"]
[Date "2024.02.27"]
[Round "9"]
[White "Savagelittlemole"]
[Black "Boorchess"]
[Result "1-0"]
[WhiteElo "2456"]
[BlackElo "2536"]
[TimeControl "180+1"]
[EndTime "9:45:25 PST"]
[Termination "Savagelittlemole won by resignation"]

1. e4 {[%clk 0:03:00.9]} 1... a5 {[%clk 0:02:59.4]} 2. Nf3 {[%clk 0:03:00.8]}
2... h5 {[%clk 0:02:59]} 3. Bc4 {[%clk 0:02:59.6]} 3... e6 {[%clk 0:02:58.9]} 4.
e5 {[%clk 0:02:58.8]} 4... d5 {[%clk 0:02:57.8]} 5. exd6 {[%clk 0:02:58.5]} 5...
cxd6 {[%clk 0:02:58]} 6. d4 {[%clk 0:02:57]} 6... b6 {[%clk 0:02:54.7]} 7. d5
{[%clk 0:02:55.7]} 7... e5 {[%clk 0:02:54.4]} 8. Nc3 {[%clk 0:02:53.1]} 8... Nf6
{[%clk 0:02:48.1]} 9. Bg5 {[%clk 0:02:51.7]} 9... Be7 {[%clk 0:02:47.5]} 10. h3
{[%clk 0:02:51.3]} 10... g6 {[%clk 0:02:39.4]} 11. O-O {[%clk 0:02:49.4]} 11...
Nh7 {[%clk 0:02:34.3]} 12. Be3 {[%clk 0:02:34.3]} 12... Bb7 {[%clk 0:02:24.4]}
13. Na4 {[%clk 0:02:31.5]} 13... Nd7 {[%clk 0:02:21.9]} 14. Bb5 {[%clk
0:02:31.8]} 14... Rb8 {[%clk 0:02:16.9]} 15. Bxd7+ {[%clk 0:02:22.8]} 15... Qxd7
{[%clk 0:02:16.6]} 16. Nxb6 {[%clk 0:02:23.5]} 16... Qf5 {[%clk 0:02:10.1]} 17.
c4 {[%clk 0:02:16.7]} 17... g5 {[%clk 0:02:05.5]} 18. Qa4+ {[%clk 0:02:15.9]}
18... Kd8 {[%clk 0:02:01.1]} 19. Qxa5 {[%clk 0:01:58.4]} 19... g4 {[%clk
0:01:57.5]} 20. Qa7 {[%clk 0:01:50.7]} 20... Rc8 {[%clk 0:01:55.9]} 21. Qxb7
{[%clk 0:01:48.7]} 21... gxf3 {[%clk 0:01:51.4]} 22. Qxc8+ {[%clk 0:01:41.2]}
22... Qxc8 {[%clk 0:01:50.3]} 23. Nxc8 {[%clk 0:01:42.1]} 23... Kxc8 {[%clk
0:01:39.8]} 24. gxf3 {[%clk 0:01:41.9]} 24... Ng5 {[%clk 0:01:34.5]} 25. Bxg5
{[%clk 0:01:40]} 25... Bxg5 {[%clk 0:01:34.2]} 26. Kh1 {[%clk 0:01:38]} 26...
Rh6 {[%clk 0:01:31.4]} 27. Rg1 {[%clk 0:01:38.3]} 27... Bh4 {[%clk 0:01:31.7]}
28. Rg7 {[%clk 0:01:34.7]} 28... Rf6 {[%clk 0:01:31.1]} 29. Kg2 {[%clk
0:01:34.9]} 29... e4 {[%clk 0:01:30.3]} 30. fxe4 {[%clk 0:01:31.9]} 30... Rxf2+
{[%clk 0:01:30.2]} 31. Kh1 {[%clk 0:01:29.9]} 31... Kd8 {[%clk 0:01:28.6]} 32.
b4 {[%clk 0:01:28.8]} 32... Ke7 {[%clk 0:01:27.9]} 33. c5 {[%clk 0:01:28]} 33...
Bf6 {[%clk 0:01:27.3]} 34. Rag1 {[%clk 0:01:19.4]} 34... Be5 {[%clk 0:01:19.7]}
35. R7g2 {[%clk 0:01:18.3]} 35... Rf3 {[%clk 0:01:19.1]} 36. Rd1 {[%clk
0:01:11.7]} 36... Rxh3+ {[%clk 0:01:12.7]} 37. Kg1 {[%clk 0:01:11.3]} 37... Ra3
{[%clk 0:01:09.8]} 38. c6 {[%clk 0:01:08.1]} 38... h4 {[%clk 0:01:07.9]} 39. Rc2
{[%clk 0:01:07.1]} 39... Kd8 {[%clk 0:01:03.8]} 40. Rf1 {[%clk 0:00:57.3]} 40...
f6 {[%clk 0:00:55.7]} 41. c7+ {[%clk 0:00:52.7]} 41... Kc8 {[%clk 0:00:55.3]}
42. Rf5 {[%clk 0:00:53]} 42... Bc3 {[%clk 0:00:43.6]} 43. Rf3 {[%clk 0:00:48.9]}
43... Bd4+ {[%clk 0:00:40.8]} 44. Kg2 {[%clk 0:00:49.4]} 44... Ra4 {[%clk
0:00:33.3]} 45. Rh3 {[%clk 0:00:36.7]} 45... Ra7 {[%clk 0:00:18]} 46. Rxh4
{[%clk 0:00:36.4]} 46... Rxc7 {[%clk 0:00:18.1]} 47. Rxc7+ {[%clk 0:00:33.9]}
47... Kxc7 {[%clk 0:00:18.4]} 48. Rh3 {[%clk 0:00:32.1]} 48... Kb6 {[%clk
0:00:18.2]} 49. a4 {[%clk 0:00:32.4]} 49... Be5 {[%clk 0:00:17.4]} 50. Rb3
{[%clk 0:00:31.8]} 50... Ka6 {[%clk 0:00:17.4]} 51. Kf3 {[%clk 0:00:32.2]} 51...
Kb6 {[%clk 0:00:17.6]} 52. Ke2 {[%clk 0:00:32.8]} 52... Ka6 {[%clk 0:00:18.1]}
53. Kd3 {[%clk 0:00:33.5]} 53... Kb6 {[%clk 0:00:18.7]} 54. Kc4 {[%clk
0:00:34.1]} 54... Ka6 {[%clk 0:00:19.2]} 55. Ra3 {[%clk 0:00:31.1]} 55... Kb6
{[%clk 0:00:18.4]} 56. a5+ {[%clk 0:00:31.2]} 56... Ka6 {[%clk 0:00:18.7]} 57.
b5+ {[%clk 0:00:31.5]} 57... Kb7 {[%clk 0:00:19.1]} 58. a6+ {[%clk 0:00:28.3]}
58... Ka7 {[%clk 0:00:18.6]} 59. Rh3 {[%clk 0:00:27.4]} 59... Kb6 {[%clk
0:00:17.7]} 60. Rh7 {[%clk 0:00:28]} 60... f5 {[%clk 0:00:16.3]} 61. a7 {[%clk
0:00:27.6]} 1-0

[Event "Early-Titled-Tuesday-Blitz-February-27-2024"]
[Site "Chess.com"]
[Date "2024.02.27"]
[Round "9"]
[White "SaiAgni_98"]
[Black "Al_Shima"]
[Result "1-0"]
[WhiteElo "2561"]
[BlackElo "2418"]
[TimeControl "180+1"]
[EndTime "9:45:26 PST"]
[Termination "SaiAgni_98 won by resignation"]

1. e4 {[%clk 0:03:00.9]} 1... c5 {[%clk 0:02:55.7]} 2. Nf3 {[%clk 0:03:00.6]}
2... e6 {[%clk 0:02:56.1]} 3. g3 {[%clk 0:02:51]} 3... Nc6 {[%clk 0:02:54.2]} 4.
Bg2 {[%clk 0:02:49.2]} 4... g6 {[%clk 0:02:52.7]} 5. O-O {[%clk 0:02:48.8]} 5...
Bg7 {[%clk 0:02:52.6]} 6. c3 {[%clk 0:02:47.3]} 6... Nge7 {[%clk 0:02:50.5]} 7.
Qe2 {[%clk 0:02:34.7]} 7... O-O {[%clk 0:02:49.2]} 8. e5 {[%clk 0:02:27.6]} 8...
d6 {[%clk 0:02:28.5]} 9. exd6 {[%clk 0:02:27.4]} 9... Qxd6 {[%clk 0:02:27.5]}
10. Na3 {[%clk 0:02:27.5]} 10... Rd8 {[%clk 0:02:21.3]} 11. Nb5 {[%clk
0:02:21.2]} 11... Qd3 {[%clk 0:02:11.5]} 12. Qxd3 {[%clk 0:02:16.3]} 12... Rxd3
{[%clk 0:02:12.4]} 13. a4 {[%clk 0:02:17]} 13... a6 {[%clk 0:02:05.6]} 14. Na3
{[%clk 0:02:17.2]} 14... e5 {[%clk 0:02:04.4]} 15. Ne1 {[%clk 0:02:14.3]} 15...
Rd8 {[%clk 0:02:03.7]} 16. Nc4 {[%clk 0:02:12.1]} 16... Be6 {[%clk 0:01:54.4]}
17. Nb6 {[%clk 0:02:12.4]} 17... Rab8 {[%clk 0:01:54.4]} 18. d3 {[%clk
0:02:12.9]} 18... Bf5 {[%clk 0:01:24.8]} 19. Be3 {[%clk 0:02:01.7]} 19... Bxd3
{[%clk 0:01:11.8]} 20. Nxd3 {[%clk 0:02:02.6]} 20... Rxd3 {[%clk 0:01:12.4]} 21.
Bxc5 {[%clk 0:02:03.3]} 21... Rd2 {[%clk 0:01:12.9]} 22. Nc4 {[%clk 0:01:58.3]}
22... Rd7 {[%clk 0:01:05.7]} 23. a5 {[%clk 0:01:43.1]} 23... Rbd8 {[%clk
0:01:01.6]} 24. Rfe1 {[%clk 0:01:42]} 24... f5 {[%clk 0:00:39]} 25. f3 {[%clk
0:01:19.1]} 25... Kf7 {[%clk 0:00:31.9]} 26. Bf1 {[%clk 0:01:18.8]} 26... Bf6
{[%clk 0:00:30.5]} 27. Nb6 {[%clk 0:01:18.9]} 27... Rd2 {[%clk 0:00:28]} 28. Nc4
{[%clk 0:01:18.8]} 28... R2d7 {[%clk 0:00:26.1]} 29. Rab1 {[%clk 0:01:03.1]}
29... Nd5 {[%clk 0:00:16.6]} 30. Rbd1 {[%clk 0:00:57.4]} 30... Kg7 {[%clk
0:00:12]} 31. Be2 {[%clk 0:00:55.6]} 31... Nc7 {[%clk 0:00:09.2]} 32. b4 {[%clk
0:00:46.4]} 32... Ne6 {[%clk 0:00:09.3]} 33. Bb6 {[%clk 0:00:45]} 33... Rxd1
{[%clk 0:00:08.7]} 34. Bxd1 {[%clk 0:00:44.5]} 34... Rxd1 {[%clk 0:00:08.9]} 35.
Rxd1 {[%clk 0:00:44.6]} 35... e4 {[%clk 0:00:06.8]} 36. Rd7+ {[%clk 0:00:42.3]}
36... Kh6 {[%clk 0:00:06.3]} 37. f4 {[%clk 0:00:42.1]} 37... Bxc3 {[%clk
0:00:05.3]} 38. Rxb7 {[%clk 0:00:38.3]} 38... Nxb4 {[%clk 0:00:03.4]} 39. Ne5
{[%clk 0:00:30.7]} 39... Bxe5 {[%clk 0:00:02.8]} 40. fxe5 {[%clk 0:00:31.6]}
40... Nd3 {[%clk 0:00:03.4]} 41. Be3+ {[%clk 0:00:30.5]} 41... g5 {[%clk
0:00:02.5]} 42. Rb6 {[%clk 0:00:30.4]} 42... Kh5 {[%clk 0:00:01.4]} 43. Rxe6
{[%clk 0:00:30.6]} 43... f4 {[%clk 0:00:01.8]} 44. gxf4 {[%clk 0:00:31.5]} 44...
gxf4 {[%clk 0:00:02.7]} 45. Bd4 {[%clk 0:00:31.8]} 45... e3 {[%clk 0:00:03]} 46.
Kf1 {[%clk 0:00:27.5]} 46... f3 {[%clk 0:00:03]} 47. Bxe3 {[%clk 0:00:27]} 47...
Kg4 {[%clk 0:00:03.3]} 48. Re8 {[%clk 0:00:26.2]} 48... Kf5 {[%clk 0:00:04.2]}
49. e6 {[%clk 0:00:26.5]} 49... Ne5 {[%clk 0:00:05]} 50. e7 {[%clk 0:00:26.3]}
50... Ng4 {[%clk 0:00:05.9]} 51. Rf8+ {[%clk 0:00:25.5]} 51... Kg6 {[%clk
0:00:06.8]} 52. e8=Q+ {[%clk 0:00:25.3]} 1-0

[Event "Early-Titled-Tuesday-Blitz-February-27-2024"]
[Site "Chess.com"]
[Date "2024.02.27"]
[Round "9"]
[White "mishanick"]
[Black "Onischuk_V"]
[Result "1-0"]
[WhiteElo "3074"]
[BlackElo "2797"]
[TimeControl "180+1"]
[EndTime "9:45:27 PST"]
[Termination "mishanick won by checkmate"]

1. d4 {[%clk 0:03:00.9]} 1... d6 {[%clk 0:02:59.9]} 2. Nf3 {[%clk 0:02:59.3]}
2... g6 {[%clk 0:03:00.2]} 3. c4 {[%clk 0:02:59.5]} 3... Bg7 {[%clk 0:02:58.3]}
4. Nc3 {[%clk 0:02:59.9]} 4... e5 {[%clk 0:02:55.9]} 5. d5 {[%clk 0:02:55]} 5...
f5 {[%clk 0:02:53]} 6. e4 {[%clk 0:02:55.5]} 6... Nf6 {[%clk 0:02:51.9]} 7. Bd3
{[%clk 0:02:56.3]} 7... O-O {[%clk 0:02:48.2]} 8. h3 {[%clk 0:02:56.7]} 8... Na6
{[%clk 0:02:42.9]} 9. Be3 {[%clk 0:02:56.8]} 9... Nc5 {[%clk 0:02:36]} 10. Bxc5
{[%clk 0:02:56.3]} 10... dxc5 {[%clk 0:02:36.2]} 11. Qc2 {[%clk 0:02:56.8]}
11... Ne8 {[%clk 0:02:30.1]} 12. O-O-O {[%clk 0:02:43.6]} 12... Nd6 {[%clk
0:02:29.8]} 13. Rde1 {[%clk 0:02:43.1]} 13... f4 {[%clk 0:02:26.9]} 14. h4
{[%clk 0:02:43]} 14... h6 {[%clk 0:02:23.5]} 15. Reg1 {[%clk 0:02:16.3]} 15...
Bg4 {[%clk 0:02:15.7]} 16. Nh2 {[%clk 0:02:15.2]} 16... Qxh4 {[%clk 0:02:03.7]}
17. Nxg4 {[%clk 0:01:17.7]} 17... Qxg4 {[%clk 0:02:02.1]} 18. Be2 {[%clk
0:01:17.8]} 18... Qg5 {[%clk 0:01:59.1]} 19. Kb1 {[%clk 0:01:17.3]} 19... a6
{[%clk 0:01:52.5]} 20. a4 {[%clk 0:01:08.5]} 20... h5 {[%clk 0:01:37.5]} 21. Qd1
{[%clk 0:01:05.1]} 21... Qf6 {[%clk 0:01:33.8]} 22. g4 {[%clk 0:00:58.6]} 22...
fxg3 {[%clk 0:00:59.6]} 23. Rxg3 {[%clk 0:00:58.2]} 23... h4 {[%clk 0:00:40]}
24. Rg2 {[%clk 0:00:58.6]} 24... g5 {[%clk 0:00:39.9]} 25. Bg4 {[%clk
0:00:58.6]} 25... Kf7 {[%clk 0:00:32.4]} 26. Be6+ {[%clk 0:00:37.6]} 26... Ke7
{[%clk 0:00:32.6]} 27. Qh5 {[%clk 0:00:38.2]} 27... Rh8 {[%clk 0:00:28.5]} 28.
Qe2 {[%clk 0:00:36]} 28... a5 {[%clk 0:00:24]} 29. Rh3 {[%clk 0:00:36]} 29...
Raf8 {[%clk 0:00:22.1]} 30. Ka2 {[%clk 0:00:32.6]} 30... b6 {[%clk 0:00:21.7]}
31. Nd1 {[%clk 0:00:19.8]} 31... Qg6 {[%clk 0:00:19.4]} 32. Rg4 {[%clk
0:00:15.9]} 32... Rf4 {[%clk 0:00:15.7]} 33. Ne3 {[%clk 0:00:12.4]} 33... Qxe4
{[%clk 0:00:05.8]} 34. Rxg5 {[%clk 0:00:11.7]} 34... Bf6 {[%clk 0:00:06]} 35.
Rg6 {[%clk 0:00:09.3]} 35... Qxg6 {[%clk 0:00:04.6]} 36. Qd1 {[%clk 0:00:07.3]}
36... Nxc4 {[%clk 0:00:04.1]} 37. d6+ {[%clk 0:00:04.5]} 37... Kxe6 {[%clk
0:00:03.8]} 38. Qd5+ {[%clk 0:00:04.8]} 38... Kd7 {[%clk 0:00:04.2]} 39. Nxc4
{[%clk 0:00:02.3]} 39... Qe4 {[%clk 0:00:03.4]} 40. Qf7+ {[%clk 0:00:01.4]}
40... Kc6 {[%clk 0:00:02.3]} 41. Qxc7+ {[%clk 0:00:02.1]} 41... Kd5 {[%clk
0:00:02.7]} 42. Nxb6+ {[%clk 0:00:02.8]} 42... Ke6 {[%clk 0:00:01.9]} 43. Qd7#
{[%clk 0:00:02.5]} 1-0

[Event "Early-Titled-Tuesday-Blitz-February-27-2024"]
[Site "Chess.com"]
[Date "2024.02.27"]
[Round "9"]
[White "Makswolf200817"]
[Black "Zkid"]
[Result "1-0"]
[WhiteElo "2757"]
[BlackElo "2910"]
[TimeControl "180+1"]
[EndTime "9:45:27 PST"]
[Termination "Makswolf200817 won on time"]

1. d4 {[%clk 0:03:00.9]} 1... Nf6 {[%clk 0:02:59.8]} 2. c4 {[%clk 0:03:00.6]}
2... c5 {[%clk 0:03:00.1]} 3. d5 {[%clk 0:03:00.6]} 3... b5 {[%clk 0:03:00.6]}
4. cxb5 {[%clk 0:03:01.1]} 4... a6 {[%clk 0:03:01.2]} 5. bxa6 {[%clk 0:03:01.7]}
5... g6 {[%clk 0:03:01.3]} 6. Nc3 {[%clk 0:03:02]} 6... Bg7 {[%clk 0:03:01.8]}
7. Nf3 {[%clk 0:03:01.7]} 7... O-O {[%clk 0:03:00.6]} 8. a7 {[%clk 0:03:02.3]}
8... Rxa7 {[%clk 0:03:00.6]} 9. e4 {[%clk 0:03:03]} 9... d6 {[%clk 0:02:53.8]}
10. Be2 {[%clk 0:02:58]} 10... Ba6 {[%clk 0:02:50.6]} 11. O-O {[%clk 0:02:52.9]}
11... Qb6 {[%clk 0:02:49.6]} 12. a4 {[%clk 0:02:49.4]} 12... Nbd7 {[%clk
0:02:47.8]} 13. h3 {[%clk 0:02:46.4]} 13... Rb8 {[%clk 0:02:35]} 14. Ra3 {[%clk
0:02:38.9]} 14... Qa5 {[%clk 0:02:19.9]} 15. Re1 {[%clk 0:02:13.5]} 15... Rb4
{[%clk 0:01:57.9]} 16. Bd2 {[%clk 0:01:30]} 16... Qb6 {[%clk 0:01:53.6]} 17.
Bxa6 {[%clk 0:01:17]} 17... Rxa6 {[%clk 0:01:47.2]} 18. Bc1 {[%clk 0:01:03.4]}
18... Ne8 {[%clk 0:01:43.8]} 19. Na2 {[%clk 0:00:42]} 19... Bxb2 {[%clk
0:01:19.1]} 20. Nxb4 {[%clk 0:00:41.1]} 20... cxb4 {[%clk 0:01:18.6]} 21. Ra2
{[%clk 0:00:18.5]} 21... Bxc1 {[%clk 0:01:12.5]} 22. Qxc1 {[%clk 0:00:19.4]}
22... b3 {[%clk 0:01:11.2]} 23. Rb2 {[%clk 0:00:19.9]} 23... f6 {[%clk
0:01:06.3]} 24. Qc4 {[%clk 0:00:16]} 24... Nc5 {[%clk 0:01:03.3]} 25. Ra1 {[%clk
0:00:15.7]} 25... Qb7 {[%clk 0:00:42.1]} 26. Nd4 {[%clk 0:00:15]} 26... Rb6
{[%clk 0:00:41.6]} 27. Nc6 {[%clk 0:00:11.3]} 27... e5 {[%clk 0:00:32.3]} 28. a5
{[%clk 0:00:10.1]} 28... Ra6 {[%clk 0:00:32.7]} 29. f4 {[%clk 0:00:09.7]} 29...
Kg7 {[%clk 0:00:12.7]} 30. fxe5 {[%clk 0:00:09.9]} 30... fxe5 {[%clk 0:00:12.9]}
31. Nxe5 {[%clk 0:00:08.8]} 31... Nf6 {[%clk 0:00:12.4]} 32. Nc6 {[%clk
0:00:06.7]} 32... Nfxe4 {[%clk 0:00:11.1]} 33. Kh2 {[%clk 0:00:07.1]} 33... Qf7
{[%clk 0:00:09.6]} 34. Rf1 {[%clk 0:00:06.7]} 34... Qe8 {[%clk 0:00:07.2]} 35.
Re2 {[%clk 0:00:06.8]} 35... Rxc6 {[%clk 0:00:04.1]} 36. dxc6 {[%clk 0:00:07]}
36... Qxc6 {[%clk 0:00:05]} 37. Qf7+ {[%clk 0:00:05.8]} 37... Kh6 {[%clk
0:00:05.3]} 38. Qf4+ {[%clk 0:00:06.2]} 38... g5 {[%clk 0:00:02.4]} 39. Qf8+
{[%clk 0:00:06.5]} 39... Kg6 {[%clk 0:00:02.3]} 40. Qf7+ {[%clk 0:00:06.6]}
40... Kh6 {[%clk 0:00:02.8]} 41. h4 {[%clk 0:00:04.5]} 41... gxh4 {[%clk
0:00:02.6]} 42. Rf5 {[%clk 0:00:04.4]} 42... Ng3 {[%clk 0:00:01.1]} 43. Re6+
{[%clk 0:00:03]} 1-0